fUSD/lending_fUSD_20260605
["ID","MTS","AMOUNT","RATE_DAILY","PERIOD"]
[424216193,1780669870000,-150.0,0.00030137,2]
[424216196,1780669870000,-150.0,0.00030137,2]
[424216199,1780669870000,-417.09683741,0.00030156,2]
[424216200,1780669870000,-517.62152583,0.00030156,2]
[424216202,1780669870000,-186.5413932,0.00030156,2]
[424216197,1780669870000,-156.57780002,0.00030137,2]
[424216203,1780669870000,-366.53473931,0.00030156,2]
[424216201,1780669870000,-248.46683468,0.00030156,2]
[424216206,1780669870000,-610.56077583,0.00030156,2]
[424216211,1780669870000,-15818.19369136,0.000302,2]
[424216190,1780669870000,-150.0,0.00030137,2]
[424216195,1780669870000,-150.0,0.00030137,2]
[424216198,1780669870000,-243.28835272,0.00030156,2]
[424216176,1780669870000,-158.41,0.00030137,2]
[424216182,1780669870000,-349.89,0.00030137,2]
[424216209,1780669870000,-504.53518245,0.00030156,2]
[424216165,1780669870000,-335.49,0.00030137,30]
[424216166,1780669870000,-933.22820113,0.00030137,120]
[424216162,1780669870000,-200.0,0.00030137,2]
[424216164,1780669870000,-150.0,0.00030137,2]
[424216163,1780669870000,-200.0,0.00030137,2]
[424216167,1780669870000,-930.16141006,0.00030137,120]
[424216169,1780669870000,-930.00040353,0.00030137,120]
[424216171,1780669870000,-930.00000101,0.00030137,120]
[424216177,1780669870000,-158.41,0.00030137,2]
[424216175,1780669870000,-158.41,0.00030137,2]
[424216172,1780669870000,-317.13048338,0.00030137,2]
[424216170,1780669870000,-930.00002018,0.00030137,120]
[424216173,1780669870000,-158.41,0.00030137,2]
[424216168,1780669870000,-930.0080705,0.00030137,120]
[424216178,1780669870000,-158.41,0.00030137,2]
[424216174,1780669870000,-158.41,0.00030137,2]
[424216179,1780669870000,-158.41,0.00030137,2]
[424216183,1780669870000,-1500.0,0.00030137,15]
[424216180,1780669870000,-930.00000004,0.00030137,120]
[424216181,1780669870000,-475.27,0.00030137,2]
[424216192,1780669870000,-150.0,0.00030137,2]
[424216210,1780669870000,-489.40114199,0.00030156,2]
[424216191,1780669870000,-150.0,0.00030137,2]
[424216216,1780669870000,-176.0,0.00030205,14]
[424216241,1780669870000,-842.0,0.00030366,30]
[424216236,1780669870000,-3208.0,0.00030365,30]
[424216242,1780669870000,-828.0,0.00030366,30]
[424216237,1780669870000,-3174.0,0.00030365,30]
[424216238,1780669870000,-1071.0,0.00030366,30]
[424216240,1780669870000,-4088.0,0.00030366,30]
[424216249,1780669870000,-3265.65955674,0.00030393,2]
[424216250,1780669870000,-755.69,0.000304,14]
[424216252,1780669870000,-200.0,0.00030417,2]
[424216253,1780669870000,-620.61,0.0003042,7]
[424216256,1780669870000,-668.65185756,0.00030456,2]
[424216251,1780669870000,-180.79,0.00030411,120]
[424216244,1780669870000,-1079.0,0.00030366,30]
[424216246,1780669870000,-543.0,0.00030366,30]
[424216247,1780669870000,-722.8628557,0.00030366,2]
[424216245,1780669870000,-2256.0,0.00030366,30]
[424216248,1780669870000,-15478.07,0.00030378,7]
[424216254,1780669870000,-200.0,0.00030437,2]
[424216257,1780669870000,-833.92535152,0.00030456,2]
[424216258,1780669870000,-3265.65955674,0.00030468,2]
[424216217,1780669870000,-3265.65955674,0.00030209,2]
[424216243,1780669870000,-4454.0,0.00030366,30]
[424216239,1780669870000,-629.0,0.00030366,30]
[424216255,1780669870000,-955.0,0.00030439,30]
[424216235,1780669870000,-1172.0,0.00030365,30]
[424216218,1780669870000,-237.46101396,0.00030209,7]
[424216233,1780669870000,-559.0,0.00030341,5]
[424216212,1780669870000,-208.198819,0.000302,3]
[424216207,1780669870000,-179.14172686,0.00030156,2]
[424216214,1780669870000,-990.48,0.000302,2]
[424216208,1780669870000,-309.77045782,0.00030156,2]
[424216213,1780669870000,-253.13,0.000302,2]
[424216220,1780669870000,-311.73,0.00030236,30]
[424216231,1780669870000,-200.0,0.00030324,2]
[424216230,1780669870000,-200.0,0.00030324,2]
[424216219,1780669870000,-267.2,0.00030236,30]
[424216215,1780669870000,-152.982753,0.000302,2]
[424216221,1780669870000,-311.73,0.00030236,30]
[424216223,1780669870000,-4793.4,0.00030239,2]
[424216224,1780669870000,-1222.61,0.00030282,7]
[424216227,1780669870000,-5000.0,0.000303,30]
[424216226,1780669870000,-1093.69,0.000303,7]
[424216228,1780669870000,-1071.78,0.000303,30]
[424216229,1780669870000,-3265.65955674,0.00030309,2]
[424216225,1780669870000,-918.02,0.00030282,7]
[424216222,1780669870000,-311.73,0.00030236,30]
[424216232,1780669870000,-238.433086,0.00030336,7]
[424216234,1780669870000,-179.97120458,0.00030362,2]
[424216290,1780669871000,-1578.99947078,0.0003054,2]
[424216295,1780669871000,-170.95079609,0.0003054,2]
[424216293,1780669871000,-615.38442061,0.0003054,2]
[424216291,1780669871000,-326.49332156,0.0003054,2]
[424216292,1780669871000,-610.21779642,0.0003054,2]
[424216286,1780669871000,-416.07870238,0.0003054,2]
[424216288,1780669871000,-486.66674875,0.0003054,2]
[424216283,1780669871000,-371.20028006,0.0003054,2]
[424216296,1780669871000,-430.24250619,0.0003054,2]
[424216287,1780669871000,-635.13058157,0.0003054,2]
[424216297,1780669871000,-487.53702531,0.0003054,2]
[424216306,1780669871000,-674.28300878,0.0003054,2]
[424216305,1780669871000,-625.933757,0.0003054,2]
[424216298,1780669871000,-669.8141459,0.0003054,2]
[424216299,1780669871000,-412.40664373,0.0003054,2]
[424216302,1780669871000,-799.58896878,0.0003054,2]
[424216303,1780669871000,-169.02422643,0.0003054,2]
[424216300,1780669871000,-315.65352557,0.0003054,2]
[424216301,1780669871000,-622.00866514,0.0003054,2]
[424216307,1780669871000,-536.04726214,0.0003054,2]
[424216309,1780669871000,-346.90103295,0.0003054,2]
[424216315,1780669871000,-150.51900411,0.0003054,2]
[424216285,1780669871000,-308.95544412,0.0003054,2]
[424216304,1780669871000,-760.37766043,0.0003054,2]
[424216289,1780669871000,-165.70335479,0.0003054,2]
[424216260,1780669871000,-2330.7,0.00030513,7]
[424216294,1780669871000,-616.04745233,0.0003054,2]
[424216259,1780669871000,-503.17946442,0.00030512,2]
[424216261,1780669871000,-3265.65955674,0.00030535,2]
[424216313,1780669871000,-584.6861633,0.0003054,2]
[424216262,1780669871000,-588.15555042,0.0003054,2]
[424216263,1780669871000,-603.5943544,0.0003054,2]
[424216265,1780669871000,-693.88396807,0.0003054,2]
[424216267,1780669871000,-460.13773585,0.0003054,2]
[424216266,1780669871000,-637.90808943,0.0003054,2]
[424216272,1780669871000,-611.96428661,0.0003054,2]
[424216273,1780669871000,-807.02986836,0.0003054,2]
[424216271,1780669871000,-349.28960793,0.0003054,2]
[424216284,1780669871000,-402.18308405,0.0003054,2]
[424216264,1780669871000,-435.11333649,0.0003054,2]
[424216268,1780669871000,-530.81095139,0.0003054,2]
[424216270,1780669871000,-168.98315568,0.0003054,2]
[424216275,1780669871000,-745.60571367,0.0003054,2]
[424216274,1780669871000,-722.72106715,0.0003054,2]
[424216276,1780669871000,-170.30248078,0.0003054,2]
[424216281,1780669871000,-677.85628991,0.0003054,2]
[424216278,1780669871000,-178.28967843,0.0003054,2]
[424216282,1780669871000,-427.39977061,0.0003054,2]
[424216279,1780669871000,-480.41118389,0.0003054,2]
[424216277,1780669871000,-168.06279881,0.0003054,2]
[424216280,1780669871000,-1445.58708225,0.0003054,2]
[424216269,1780669871000,-718.50881952,0.0003054,2]
[424216312,1780669871000,-1246.73662005,0.0003054,2]
[424216308,1780669871000,-456.23406909,0.0003054,2]
[424216311,1780669871000,-684.7330964,0.0003054,2]
[424216348,1780669871000,-1363.63212654,0.00030648,2]
[424216347,1780669871000,-548.59663162,0.00030648,2]
[424216345,1780669871000,-677.18991488,0.00030648,2]
[424216342,1780669871000,-3265.65955674,0.00030597,2]
[424216343,1780669871000,-200.0,0.00030627,2]
[424216346,1780669871000,-751.87280632,0.00030648,2]
[424216351,1780669871000,-3553.0,0.00030702,2]
[424216361,1780669871000,-620.95615574,0.0003074,2]
[424216362,1780669871000,-405.48865826,0.0003074,2]
[424216352,1780669871000,-3265.65955674,0.00030708,2]
[424216354,1780669871000,-282.90128703,0.00030738,2]
[424216344,1780669871000,-200.0,0.00030627,2]
[424216355,1780669871000,-256.60328286,0.0003074,2]
[424216356,1780669871000,-625.64525611,0.0003074,2]
[424216360,1780669871000,-549.80210897,0.0003074,2]
[424216359,1780669871000,-373.08278641,0.0003074,2]
[424216358,1780669871000,-690.16203444,0.0003074,2]
[424216357,1780669871000,-496.93366936,0.0003074,2]
[424216363,1780669871000,-624.40206316,0.0003074,2]
[424216366,1780669871000,-672.7135766,0.0003074,2]
[424216364,1780669871000,-814.08103444,0.0003074,2]
[424216365,1780669871000,-464.65568673,0.0003074,2]
[424216367,1780669871000,-435.46553986,0.0003074,2]
[424216310,1780669871000,-584.7169171,0.0003054,2]
[424216353,1780669871000,-179.97120458,0.00030709,2]
[424216349,1780669871000,-3265.65955674,0.00030654,2]
[424216350,1780669871000,-833.57329239,0.00030659,2]
[424216340,1780669871000,-569.55915261,0.00030561,2]
[424216316,1780669871000,-212.94586999,0.0003054,2]
[424216341,1780669871000,-643.34225862,0.00030561,2]
[424216314,1780669871000,-720.05012467,0.0003054,2]
[424216317,1780669871000,-442.93396391,0.0003054,2]
[424216318,1780669871000,-157.68801761,0.0003054,2]
[424216320,1780669871000,-515.46193697,0.0003054,2]
[424216319,1780669871000,-300.39656513,0.0003054,2]
[424216327,1780669871000,-547.17257134,0.0003054,2]
[424216321,1780669871000,-701.35039137,0.0003054,2]
[424216322,1780669871000,-444.61150977,0.0003054,2]
[424216325,1780669871000,-330.10677321,0.0003054,2]
[424216324,1780669871000,-689.66714708,0.0003054,2]
[424216323,1780669871000,-727.08748689,0.0003054,2]
[424216326,1780669871000,-154.86804363,0.0003054,2]
[424216329,1780669871000,-456.76290369,0.0003054,2]
[424216339,1780669871000,-831.25521883,0.00030561,2]
[424216335,1780669871000,-713.06291504,0.00030561,2]
[424216330,1780669871000,-646.89753849,0.00030561,2]
[424216333,1780669871000,-358.28345372,0.00030561,2]
[424216334,1780669871000,-623.50138329,0.00030561,2]
[424216332,1780669871000,-160.43311238,0.00030561,2]
[424216336,1780669871000,-687.65297718,0.00030561,2]
[424216338,1780669871000,-746.59215272,0.00030561,2]
[424216328,1780669871000,-705.61842962,0.0003054,2]
[424216337,1780669871000,-723.9130981,0.00030561,2]
[424216331,1780669871000,-193.40856996,0.00030561,2]
[424216402,1780669872000,-903.40133394,0.00031121,2]
[424216407,1780669872000,-769.23052576,0.00031121,2]
[424216403,1780669872000,-1806.98385281,0.00031121,2]
[424216406,1780669872000,-1973.74933847,0.00031121,2]
[424216404,1780669872000,-847.32036238,0.00031121,2]
[424216411,1780669872000,-950.47207554,0.00031121,2]
[424216400,1780669872000,-3265.65955674,0.00031099,2]
[424216401,1780669872000,-764.95535826,0.00031121,2]
[424216391,1780669872000,-2000.0,0.00031,2]
[424216394,1780669872000,-200.0,0.00031049,2]
[424216408,1780669872000,-770.05931541,0.00031121,2]
[424216405,1780669872000,-793.91322697,0.00031121,2]
[424216409,1780669872000,-777.51083143,0.00031121,2]
[424216420,1780669872000,-808.62192311,0.00031143,2]
[424216412,1780669872000,-842.85376098,0.00031121,2]
[424216414,1780669872000,-900.06265583,0.00031121,2]
[424216416,1780669872000,-862.08393386,0.00031121,2]
[424216415,1780669872000,-876.68798922,0.00031121,2]
[424216417,1780669872000,-2429.43196399,0.00031129,2]
[424216423,1780669872000,-797.38511178,0.00031143,2]
[424216413,1780669872000,-855.9163705,0.00031121,2]
[424216421,1780669872000,-891.3286438,0.00031143,2]
[424216419,1780669872000,-3265.65955674,0.00031136,2]
[424216418,1780669872000,-246.44,0.00031133,30]
[424216425,1780669872000,-804.17782328,0.00031143,2]
[424216395,1780669872000,-179.97120458,0.00031057,2]
[424216410,1780669872000,-999.48621098,0.00031121,2]
[424216399,1780669872000,-1227.0,0.00031086,2]
[424216370,1780669872000,-200.0,0.00030742,2]
[424216393,1780669872000,-3265.65955674,0.00031023,2]
[424216433,1780669872000,-277.751,0.000312,4]
[424216369,1780669872000,-193.36365148,0.0003074,2]
[424216371,1780669872000,-3265.65955674,0.00030759,2]
[424216368,1780669872000,-652.53485599,0.0003074,2]
[424216373,1780669872000,-1660.7273758,0.00030788,7]
[424216372,1780669872000,-148023.42455874,0.00030788,7]
[424216374,1780669872000,-49372.86747099,0.00030788,7]
[424216382,1780669872000,-2065.3,0.000309,7]
[424216381,1780669872000,-3265.65955674,0.00030899,2]
[424216375,1780669872000,-3265.65955674,0.00030808,2]
[424216386,1780669872000,-3265.65955674,0.00030983,2]
[424216383,1780669872000,-200.0,0.00030934,2]
[424216390,1780669872000,-250.0,0.00031,30]
[424216384,1780669872000,-200.0,0.00030934,2]
[424216385,1780669872000,-3265.65955674,0.00030942,2]
[424216379,1780669872000,-3265.65955674,0.00030854,2]
[424216380,1780669872000,-559.0,0.00030875,6]
[424216377,1780669872000,-179.00475756,0.00030827,7]
[424216378,1780669872000,-1638.72083584,0.0003084,2]
[424216387,1780669872000,-250.0,0.00030985,7]
[424216388,1780669872000,-351.13159668,0.00031,5]
[424216389,1780669872000,-755.69,0.00031,14]
[424216392,1780669872000,-150.0,0.00031011,2]
[424216396,1780669872000,-3265.65955674,0.00031062,2]
[424216397,1780669872000,-932.00714209,0.00031086,2]
[424216398,1780669872000,-1273.0,0.00031086,2]
[424216376,1780669872000,-152.0,0.00030812,6]
[424216434,1780669872000,-172.192084,0.000312,4]
[424216422,1780669872000,-904.89137263,0.00031143,2]
[424216432,1780669872000,-212.714209,0.000312,4]
[424216459,1780669872000,-828.0,0.00031366,30]
[424216461,1780669872000,-1079.0,0.00031366,30]
[424216460,1780669872000,-4454.0,0.00031366,30]
[424216466,1780669872000,-3265.65955674,0.000314,2]
[424216464,1780669872000,-3265.65955674,0.00031369,2]
[424216463,1780669872000,-543.0,0.00031366,30]
[424216469,1780669872000,-3265.65955674,0.0003143,2]
[424216465,1780669872000,-150.0,0.00031383,22]
[424216462,1780669872000,-2256.0,0.00031366,30]
[424216467,1780669872000,-179.97120458,0.00031405,2]
[424216468,1780669872000,-559.0,0.00031409,6]
[424216470,1780669872000,-955.0,0.00031439,30]
[424216471,1780669872000,-3265.65955674,0.00031459,2]
[424216473,1780669872000,-500.0,0.000315,2]
[424216472,1780669872000,-3265.65955674,0.00031488,2]
[424216475,1780669872000,-835.34,0.000315,2]
[424216474,1780669872000,-500.0,0.000315,2]
[424216478,1780669872000,-2065.3,0.000315,7]
[424216477,1780669872000,-150.0,0.000315,2]
[424216476,1780669872000,-201.02373753,0.000315,2]
[424216479,1780669872000,-500.0,0.000315,2]
[424216480,1780669872000,-500.0,0.000315,2]
[424216481,1780669872000,-500.0,0.000315,2]
[424216483,1780669872000,-500.0,0.000315,2]
[424216482,1780669872000,-500.0,0.000315,2]
[424216485,1780669872000,-753.02,0.000315,2]
[424216424,1780669872000,-1039.06902353,0.00031143,2]
[424216456,1780669872000,-629.0,0.00031366,30]
[424216458,1780669872000,-842.0,0.00031366,30]
[424216484,1780669872000,-500.0,0.000315,2]
[424216453,1780669872000,-3208.0,0.00031365,30]
[424216457,1780669872000,-4088.0,0.00031366,30]
[424216427,1780669872000,-1184.8,0.00031164,7]
[424216486,1780669872000,-335.49,0.00031507,30]
[424216426,1780669872000,-867.35496009,0.00031143,2]
[424216430,1780669872000,-160.200143,0.000312,4]
[424216429,1780669872000,-166.088561,0.000312,4]
[424216431,1780669872000,-202.048857,0.000312,4]
[424216435,1780669872000,-1000.0,0.000312,7]
[424216437,1780669872000,-237.46101396,0.00031209,7]
[424216436,1780669872000,-3265.65955674,0.00031207,2]
[424216446,1780669872000,-1093.69,0.000313,7]
[424216442,1780669872000,-200.0,0.00031243,2]
[424216441,1780669872000,-200.0,0.00031243,2]
[424216428,1780669872000,-3265.65955674,0.00031172,2]
[424216439,1780669872000,-1704.54015817,0.00031231,2]
[424216454,1780669872000,-3174.0,0.00031365,30]
[424216451,1780669872000,-200.0,0.0003136,2]
[424216450,1780669872000,-3265.65955674,0.00031338,2]
[424216452,1780669872000,-1172.0,0.00031365,30]
[424216447,1780669872000,-3265.65955674,0.00031306,2]
[424216448,1780669872000,-862.70254306,0.00031324,2]
[424216455,1780669872000,-1071.0,0.00031366,30]
[424216445,1780669872000,-3265.65955674,0.00031274,2]
[424216443,1780669872000,-500.0,0.00031254,14]
[424216444,1780669872000,-372.58578916,0.00031273,2]
[424216438,1780669872000,-908.85935861,0.00031231,2]
[424216440,1780669872000,-3265.65955674,0.0003124,2]
[424216449,1780669872000,-1558.42077506,0.00031324,2]
[424216529,1780669873000,-758.57069473,0.00032,120]
[424216528,1780669873000,-189.88583826,0.00032,120]
[424216527,1780669873000,-349.36821914,0.00032,120]
[424216526,1780669873000,-224.06022268,0.00032,120]
[424216518,1780669873000,-1027.0996446,0.00031993,2]
[424216523,1780669873000,-242.39949654,0.00032,120]
[424216522,1780669873000,-291.63869946,0.00032,120]
[424216525,1780669873000,-178.4326173,0.00032,120]
[424216521,1780669873000,-223.97140442,0.00032,120]
[424216519,1780669873000,-1052.02558706,0.00031993,2]
[424216524,1780669873000,-164.81302495,0.00032,120]
[424216530,1780669873000,-181.43366737,0.00032,120]
[424216532,1780669873000,-190.39877443,0.00032,120]
[424216531,1780669873000,-189.98920894,0.00032,120]
[424216533,1780669873000,-182.58880308,0.00032,120]
[424216541,1780669873000,-1187.87646612,0.00032,120]
[424216542,1780669873000,-577.6521897,0.00032,120]
[424216543,1780669873000,-10977.58549562,0.00032,120]
[424216535,1780669873000,-296.96911653,0.00032,120]
[424216534,1780669873000,-1178.18211358,0.00032,120]
[424216539,1780669873000,-1029.56491495,0.00032,120]
[424216536,1780669873000,-236.39070744,0.00032,120]
[424216538,1780669873000,-404.77817118,0.00032,120]
[424216537,1780669873000,-1083.38666305,0.00032,120]
[424216509,1780669873000,-3265.65955674,0.00031968,2]
[424216540,1780669873000,-301.08379464,0.00032,120]
[424216520,1780669873000,-161.22366768,0.00032,120]
[424216516,1780669873000,-1199.38345317,0.00031993,2]
[424216504,1780669873000,-3265.65955674,0.00031899,2]
[424216515,1780669873000,-924.07117849,0.00031993,2]
[424216544,1780669873000,-1764.21729944,0.00032,2]
[424216489,1780669873000,-3265.65955674,0.00031572,2]
[424216488,1780669873000,-3265.65955674,0.00031545,2]
[424216492,1780669873000,-150.0,0.00031644,2]
[424216490,1780669873000,-3265.65955674,0.000316,2]
[424216487,1780669873000,-3265.65955674,0.00031517,2]
[424216491,1780669873000,-3265.65955674,0.00031626,2]
[424216494,1780669873000,-3265.65955674,0.00031679,2]
[424216493,1780669873000,-3265.65955674,0.00031653,2]
[424216497,1780669873000,-179.97120458,0.00031752,2]
[424216496,1780669873000,-3265.65955674,0.0003173,2]
[424216507,1780669873000,-3265.65955674,0.00031945,2]
[424216513,1780669873000,-952.69587236,0.00031993,2]
[424216506,1780669873000,-559.0,0.00031943,7]
[424216500,1780669873000,-3265.65955674,0.00031804,2]
[424216502,1780669873000,-3265.65955674,0.00031852,2]
[424216498,1780669873000,-3265.65955674,0.00031755,2]
[424216499,1780669873000,-3265.65955674,0.0003178,2]
[424216503,1780669873000,-3265.65955674,0.00031876,2]
[424216501,1780669873000,-3265.65955674,0.00031828,2]
[424216508,1780669873000,-1118.40857051,0.00031957,2]
[424216514,1780669873000,-2368.49920616,0.00031993,2]
[424216511,1780669873000,-917.94642991,0.00031993,2]
[424216512,1780669873000,-2168.38062337,0.00031993,2]
[424216510,1780669873000,-3265.65955674,0.0003199,2]
[424216517,1780669873000,-1011.42451318,0.00031993,2]
[424216505,1780669873000,-3265.65955674,0.00031922,2]
[424216546,1780669873000,-467.0,0.00032,5]
[424216495,1780669873000,-3265.65955674,0.00031705,2]
[424216545,1780669873000,-41448.01030234,0.00032,10]
[424216578,1780669873000,-1870.10493008,0.00032201,2]
[424216581,1780669873000,-3265.65955674,0.00032223,2]
[424216590,1780669873000,-318.383922,0.00032329,7]
[424216580,1780669873000,-4793.4,0.0003221,5]
[424216589,1780669873000,-318.383922,0.00032329,7]
[424216582,1780669873000,-24281.0,0.0003224,2]
[424216586,1780669873000,-911.03436574,0.000323,2]
[424216585,1780669873000,-3265.65955674,0.00032283,2]
[424216588,1780669873000,-3265.65955674,0.00032322,2]
[424216583,1780669873000,-3265.65955674,0.00032243,2]
[424216584,1780669873000,-3265.65955674,0.00032263,2]
[424216591,1780669873000,-318.383922,0.00032329,7]
[424216575,1780669873000,-7546.50936814,0.00032197,2]
[424216598,1780669873000,-318.383922,0.00032329,7]
[424216592,1780669873000,-318.383922,0.00032329,7]
[424216602,1780669873000,-318.383922,0.00032329,7]
[424216594,1780669873000,-318.383922,0.00032329,7]
[424216596,1780669873000,-318.383922,0.00032329,7]
[424216601,1780669873000,-318.383922,0.00032329,7]
[424216600,1780669873000,-318.383922,0.00032329,7]
[424216604,1780669873000,-318.383922,0.00032329,7]
[424216603,1780669873000,-318.383922,0.00032329,7]
[424216597,1780669873000,-318.383922,0.00032329,7]
[424216595,1780669873000,-318.383922,0.00032329,7]
[424216599,1780669873000,-318.383922,0.00032329,7]
[424216547,1780669873000,-5000.0,0.00032,2]
[424216593,1780669873000,-318.383922,0.00032329,7]
[424216576,1780669873000,-2065.3,0.000322,7]
[424216587,1780669873000,-3265.65955674,0.00032302,2]
[424216579,1780669873000,-3265.65955674,0.00032203,2]
[424216548,1780669873000,-5000.0,0.00032,2]
[424216577,1780669873000,-1035.24305167,0.00032201,2]
[424216553,1780669873000,-318.06797243,0.00032,120]
[424216549,1780669873000,-5000.0,0.00032,2]
[424216555,1780669873000,-970.34630773,0.00032015,2]
[424216551,1780669873000,-700.0,0.00032,2]
[424216550,1780669873000,-12862.0,0.00032,2]
[424216552,1780669873000,-2000.0,0.00032,2]
[424216554,1780669873000,-3265.65955674,0.00032012,2]
[424216567,1780669873000,-246.44,0.0003213,30]
[424216556,1780669873000,-965.01338793,0.00032015,2]
[424216559,1780669873000,-3265.65955674,0.00032077,2]
[424216560,1780669873000,-3265.65955674,0.00032099,2]
[424216558,1780669873000,-3265.65955674,0.00032056,2]
[424216557,1780669873000,-3265.65955674,0.00032034,2]
[424216569,1780669873000,-3265.65955674,0.00032162,2]
[424216574,1780669873000,-150.0,0.00032197,2]
[424216562,1780669873000,-1093.69,0.000321,7]
[424216573,1780669873000,-12816.36056298,0.00032197,2]
[424216571,1780669873000,-352.28,0.00032192,2]
[424216570,1780669873000,-3265.65955674,0.00032182,2]
[424216568,1780669873000,-3265.65955674,0.00032141,2]
[424216572,1780669873000,-150.0,0.00032197,2]
[424216564,1780669873000,-2045.44818981,0.00032106,2]
[424216565,1780669873000,-15478.07,0.00032108,14]
[424216566,1780669873000,-3265.65955674,0.0003212,2]
[424216563,1780669873000,-1040.8259521,0.00032106,2]
[424216561,1780669873000,-179.97120458,0.000321,2]
[424216651,1780669874000,-166.564721,0.000327,8]
[424216643,1780669874000,-3265.65955674,0.00032597,2]
[424216647,1780669874000,-500.0,0.00032644,2]
[424216641,1780669874000,-212.714209,0.00032575,8]
[424216640,1780669874000,-3265.65955674,0.00032562,2]
[424216633,1780669874000,-3265.65955674,0.00032491,2]
[424216652,1780669874000,-162.502596,0.000327,8]
[424216639,1780669874000,-150.0,0.00032562,2]
[424216632,1780669874000,-559.0,0.00032477,7]
[424216634,1780669874000,-1000.0,0.000325,2]
[424216648,1780669874000,-3265.65955674,0.00032649,2]
[424216650,1780669874000,-3265.65955674,0.00032684,2]
[424216642,1780669874000,-3265.65955674,0.0003258,2]
[424216664,1780669874000,-3265.65955674,0.00032816,2]
[424216649,1780669874000,-3265.65955674,0.00032667,2]
[424216645,1780669874000,-3265.65955674,0.00032615,2]
[424216646,1780669874000,-3265.65955674,0.00032632,2]
[424216654,1780669874000,-3265.65955674,0.00032717,2]
[424216653,1780669874000,-3265.65955674,0.00032701,2]
[424216655,1780669874000,-3265.65955674,0.00032734,2]
[424216663,1780669874000,-3265.65955674,0.000328,2]
[424216656,1780669874000,-178.77529349,0.00032737,2]
[424216661,1780669874000,-4923.77379024,0.000328,2]
[424216660,1780669874000,-179.97120458,0.00032795,2]
[424216665,1780669874000,-152.0,0.00032828,7]
[424216638,1780669874000,-3265.65955674,0.00032545,2]
[424216644,1780669874000,-305.077253,0.000326,7]
[424216631,1780669874000,-3265.65955674,0.00032472,2]
[424216605,1780669874000,-318.383922,0.00032329,7]
[424216636,1780669874000,-3265.65955674,0.00032509,2]
[424216658,1780669874000,-3265.65955674,0.00032767,2]
[424216613,1780669874000,-3208.0,0.00032365,30]
[424216615,1780669874000,-1071.0,0.00032366,30]
[424216614,1780669874000,-3174.0,0.00032365,30]
[424216606,1780669874000,-318.383922,0.00032329,7]
[424216608,1780669874000,-318.38392,0.00032329,7]
[424216609,1780669874000,-1146.98,0.0003234,7]
[424216611,1780669874000,-3265.65955674,0.0003236,2]
[424216610,1780669874000,-3265.65955674,0.00032341,2]
[424216607,1780669874000,-318.383922,0.00032329,7]
[424216612,1780669874000,-1172.0,0.00032365,30]
[424216616,1780669874000,-629.0,0.00032366,30]
[424216617,1780669874000,-4088.0,0.00032366,30]
[424216621,1780669874000,-1079.0,0.00032366,30]
[424216619,1780669874000,-828.0,0.00032366,30]
[424216622,1780669874000,-2256.0,0.00032366,30]
[424216618,1780669874000,-842.0,0.00032366,30]
[424216620,1780669874000,-4454.0,0.00032366,30]
[424216623,1780669874000,-543.0,0.00032366,30]
[424216624,1780669874000,-3265.65955674,0.00032379,2]
[424216625,1780669874000,-3265.65955674,0.00032398,2]
[424216626,1780669874000,-3265.65955674,0.00032417,2]
[424216627,1780669874000,-3265.65955674,0.00032435,2]
[424216629,1780669874000,-179.97120458,0.00032448,2]
[424216635,1780669874000,-1007.12032433,0.000325,7]
[424216628,1780669874000,-955.0,0.00032439,30]
[424216637,1780669874000,-3265.65955674,0.00032527,2]
[424216630,1780669874000,-3265.65955674,0.00032454,2]
[424216657,1780669874000,-3265.65955674,0.00032751,2]
[424216666,1780669874000,-3265.65955674,0.00032833,2]
[424216659,1780669874000,-3265.65955674,0.00032784,2]
[424216698,1780669874000,-500.0,0.00032876,2]
[424216696,1780669874000,-500.0,0.00032876,2]
[424216694,1780669874000,-500.0,0.00032876,2]
[424216697,1780669874000,-462.60908464,0.00032876,2]
[424216702,1780669874000,-500.0,0.00032876,2]